bitfinex/quotes_SOLUSD_20220114
["timestamp","ask_amount","ask_price","bid_price","bid_amount"]
[1642125086013,2.711,147.6,147.48,67.59]
[1642125086213,2.711,147.62,147.49,9.78]
[1642125086412,0.25,147.6,147.5,24.37]
[1642125086612,2.711,147.62,147.51,9.78]
[1642125087013,2.711,147.62,147.52,22.7139642]
[1642125087214,10.1658,147.61,147.52,32.8793642]
[1642125087417,10.1658,147.61,147.52,33.1293642]
[1642125087619,10.4258,147.61,147.52,33.1293642]
[1642125088120,2.71,147.6,147.52,33.1293642]
[1642125088517,3.22,147.6,147.52,33.1293642]
[1642125089521,0.51,147.6,147.52,33.1293642]
[1642125090121,13.3858,147.61,147.52,33.1293642]
[1642125090723,19.3858,147.61,147.52,33.1293642]
[1642125090919,13.3858,147.61,147.52,33.1293642]
[1642125091119,19.3858,147.61,147.52,33.1293642]
[1642125091323,13.3858,147.61,147.52,33.1293642]
[1642125091520,2.71,147.6,147.52,33.1293642]
[1642125092021,0.51,147.6,147.52,33.1293642]
[1642125092519,0.25,147.6,147.52,33.1293642]
[1642125093223,2.71,147.6,147.52,33.1293642]
[1642125093520,3.22,147.6,147.52,33.1293642]
[1642125093749,0.25,147.6,147.52,33.1293642]
[1642125093919,0.25,147.6,147.52,33.3893642]
[1642125094119,0.25,147.6,147.52,43.1693642]
[1642125094722,8.96,147.62,147.52,43.1693642]
[1642125094920,12.8731,147.65,147.53,67.66]
[1642125095121,12.8731,147.65,147.56,10.1629]
[1642125095319,12.8731,147.65,147.56,38.36147862]
[1642125095520,12.8731,147.65,147.56,10.4129]
[1642125095723,18.8731,147.65,147.54,34.2458]
[1642125095923,26.3971,147.65,147.54,10.03]
[1642125096123,1.64999521,147.64,147.54,9.78]
[1642125096335,10.1694,147.59,147.5,9.78]
[1642125096524,3.9315039,147.58,147.5,9.78]
[1642125096924,4.4415039,147.58,147.5,9.78]
[1642125097124,44.3415039,147.58,147.5,9.78]
[1642125097325,41.6305039,147.58,147.5,9.78]
[1642125098227,10.1698,147.55,147.5,9.78]
[1642125098625,10.6798,147.55,147.5,10.03]
[1642125099925,10.6798,147.55,147.5,9.78]
[1642125100126,15.08562029,147.55,147.5,9.78]
[1642125100925,23.79662029,147.55,147.47,22.9799]
[1642125101127,23.79662029,147.55,147.44,9.78]
[1642125102126,47.61822029,147.55,147.44,9.78]
[1642125102326,47.61822029,147.55,147.44,10.03]
[1642125102526,47.61822029,147.55,147.44,9.78]
[1642125102727,47.68822029,147.55,147.41,4.79092688]
[1642125102927,49.3382155,147.55,147.41,4.79092688]
[1642125103128,57.4940555,147.55,147.41,4.79092688]
[1642125103330,0.07,147.53,147.41,4.79092688]
[1642125103528,1.38417772,147.47,147.41,4.79092688]
[1642125103730,4.09617772,147.47,147.41,4.79092688]
[1642125103928,10.60617772,147.47,147.41,4.79092688]
[1642125104130,10.60617772,147.47,147.41,3.88753883]
[1642125104529,7.89417772,147.47,147.41,3.88753883]
[1642125105230,10.1767,147.45,147.41,3.88753883]
[1642125105428,0.26,147.45,147.38,3.88753883]
[1642125105631,0.26,147.45,147.38,4.13753883]
[1642125105834,0.26,147.45,147.38,4.39753883]
[1642125106229,2.973,147.5,147.38,4.39753883]
[1642125106431,4.95347894,147.49,147.38,4.13753883]
[1642125106630,2.713,147.48,147.39,3.88753883]
[1642125107033,9.223,147.48,147.39,4.13753883]
[1642125107232,10.1756,147.47,147.39,4.13753883]
[1642125107637,10.4256,147.47,147.39,4.13753883]
[1642125107831,10.4256,147.47,147.39,33.45342194]
[1642125108031,0.25,147.47,147.39,33.71342194]
[1642125108435,0.25,147.47,147.4,3.88753883]
[1642125108631,10.1743,147.49,147.4,14.06163883]
[1642125108856,10.1743,147.49,147.4,14.31163883]
[1642125109055,16.4243,147.49,147.4,14.31163883]
[1642125109355,16.4243,147.49,147.41,3.88753883]
[1642125109554,16.4243,147.49,147.41,4.13753883]
[1642125110660,2.712,147.48,147.41,4.13753883]
[1642125110861,10.1761,147.46,147.41,4.13753883]
[1642125111060,10.4261,147.46,147.41,0.25]
[1642125111260,16.6861,147.46,147.41,0.25]
[1642125111460,16.6861,147.46,147.38,24.9036]
[1642125111860,10.6861,147.46,147.38,24.9036]
[1642125112058,0.51,147.46,147.38,35.0791]
[1642125112460,3.222,147.48,147.39,3.88756099]
[1642125112859,3.222,147.48,147.39,4.13756099]
[1642125113060,9.222,147.48,147.39,4.13756099]
[1642125113271,10.1751,147.47,147.39,4.13756099]
[1642125113464,10.6851,147.47,147.39,4.13756099]
[1642125114164,10.6851,147.47,147.4,3.88756099]
[1642125114363,16.6851,147.47,147.4,3.88756099]
[1642125114563,16.6851,147.47,147.4,4.13756099]
[1642125115263,2.713,147.46,147.4,4.13756099]
[1642125115464,10.1766,147.45,147.4,3.88756099]
[1642125115662,17.8436,147.45,147.4,3.88756099]
[1642125115864,18.3536,147.45,147.41,3.88756099]
[1642125116881,18.3536,147.45,147.38,3.88756099]
[1642125117082,18.3536,147.45,147.38,4.13756099]
[1642125118284,18.3536,147.45,147.39,3.88756099]
[1642125118483,18.3536,147.45,147.39,4.13756099]
[1642125118988,2.713,147.44,147.39,3.88756099]
[1642125119185,10.1795,147.42,147.39,3.88756099]
[1642125119384,6.06430001,147.41,147.39,3.88756099]
[1642125119584,6.31430001,147.41,147.39,3.88756099]
[1642125120016,6.31430001,147.41,147.32,43.16271546]
[1642125120421,6.31430001,147.41,147.32,49.16271546]
[1642125120718,6.32430001,147.41,147.32,50.81271067]
[1642125121520,6.32430001,147.41,147.33,3.88881022]
[1642125121717,6.32430001,147.41,147.35,10.1776]
[1642125122120,6.32430001,147.41,147.33,4.14881022]
[1642125122316,6.32430001,147.41,147.33,10.14881022]
[1642125122516,6.32430001,147.41,147.34,0.07]
[1642125122719,6.32430001,147.41,147.34,9.85]
[1642125122921,6.32430001,147.41,147.34,20.2782]
[1642125123117,6.32430001,147.41,147.35,23.00748822]
[1642125124122,6.32430001,147.41,147.36,3.88881022]
[1642125124520,50.35,147.46,147.36,5.78880543]
[1642125124921,56.6,147.46,147.36,5.78880543]
[1642125125121,56.6,147.46,147.36,15.82880543]
[1642125125122,8.963,147.46,147.36,15.82880543]
[1642125125820,8.963,147.46,147.37,3.88881022]
[1642125126020,8.963,147.46,147.38,25.44199242]
[1642125126221,6.0,147.46,147.4,10.1741]
[1642125126421,6.0,147.46,147.41,30.87250386]
[1642125126623,6.0,147.49,147.41,30.87250386]
[1642125126825,11.76641973,147.5,147.41,31.12250386]
[1642125127621,12.02641973,147.5,147.41,31.12250386]
[1642125127820,12.02641973,147.5,147.42,3.88881022]
[1642125128020,2.712,147.49,147.42,3.88881022]
[1642125128221,2.712,147.49,147.42,14.31131022]
[1642125128421,8.962,147.49,147.42,14.31131022]
[1642125128620,8.962,147.49,147.42,10.4225]
[1642125128820,47.6683,147.52,147.42,10.4225]
[1642125129020,2.712,147.54,147.43,9.78]
[1642125129223,15.78613674,147.55,147.46,10.1699]
[1642125129622,5.61583674,147.55,147.46,16.4199]
[1642125129820,5.61583674,147.55,147.46,10.1699]
[1642125130023,2.711,147.54,147.42,0.26]
[1642125130222,2.711,147.54,147.43,9.78]
[1642125130424,8.711,147.54,147.43,9.78]
[1642125130624,8.711,147.54,147.43,16.03]
[1642125130625,2.971,147.54,147.43,16.03]
[1642125130826,9.221,147.54,147.43,16.03]
[1642125131029,9.221,147.54,147.43,9.78]
[1642125131267,10.1717,147.53,147.43,9.78]
[1642125131428,2.712,147.52,147.43,9.78]
[1642125131629,9.222,147.53,147.43,9.78]
[1642125131829,2.972,147.53,147.43,9.78]
[1642125132027,9.222,147.53,147.43,9.78]
[1642125132427,10.1736,147.5,147.43,9.78]
[1642125132628,10.4236,147.5,147.43,9.78]
[1642125132827,2.712,147.49,147.43,9.78]
[1642125133028,3.222,147.49,147.43,9.78]
[1642125133427,0.25,147.49,147.43,9.78]
[1642125134129,2.962,147.5,147.43,9.78]
[1642125134528,2.962,147.5,147.43,10.03]
[1642125134529,0.25,147.5,147.43,10.03]
[1642125134729,0.51,147.5,147.43,10.29]
[1642125134928,9.222,147.53,147.43,10.29]
[1642125135329,10.1721,147.52,147.43,10.29]
[1642125135535,16.6821,147.52,147.43,10.29]
[1642125135728,10.6821,147.52,147.43,10.29]
[1642125136129,10.4321,147.52,147.43,10.29]
[1642125136530,0.26,147.52,147.43,20.4619]
[1642125136731,0.26,147.52,147.43,22.11189521]
[1642125136932,0.26,147.54,147.44,3.95675456]
[1642125137130,0.26,147.54,147.45,9.78]
[1642125137329,9.221,147.57,147.45,11.42999521]
[1642125137531,6.51,147.57,147.45,17.93999521]
[1642125137730,6.51,147.57,147.47,0.07]
[1642125137930,6.25,147.57,147.48,10.1683]
[1642125138130,6.25,147.57,147.49,29.84216126]
[1642125138330,24.6263,147.6,147.5,0.07]
[1642125138630,2.711,147.61,147.5,0.07]
[1642125139231,2.711,147.61,147.52,29.13681514]
[1642125139432,2.711,147.61,147.52,29.64681514]
[1642125139632,468.28798005,147.62,147.52,29.64681514]
[1642125139932,3.66334765,147.63,147.52,39.42681514]
[1642125140332,40.92229956,147.64,147.52,39.42681514]
[1642125140533,38.21229956,147.64,147.52,39.42681514]
[1642125140731,2.71,147.63,147.52,39.16681514]
[1642125140934,19.3849,147.63,147.53,10.1649]
[1642125141340,19.3849,147.63,147.53,10.4149]
[1642125141535,19.3849,147.63,147.52,9.78]
[1642125141734,19.3849,147.63,147.52,10.03]
[1642125147472,19.3849,147.63,147.52,49.57197608]
[1642125150275,19.3849,147.63,147.52,20.4559]
[1642125150879,19.3849,147.63,147.52,10.03]
[1642125151077,19.1349,147.63,147.52,9.78]
[1642125152481,19.3849,147.63,147.52,10.03]
[1642125152880,0.07,147.62,147.52,9.78]
[1642125153080,10.1702,147.55,147.48,34.3523]
[1642125153279,16.2072,147.55,147.48,9.78]
[1642125153481,16.4672,147.55,147.48,9.78]
[1642125153882,17.0280461,147.55,147.48,9.78]
[1642125154582,23.0280461,147.55,147.48,9.78]
[1642125155786,2.711,147.54,147.48,9.78]
[1642125155987,19.3916,147.54,147.48,9.78]
[1642125156985,19.3916,147.54,147.45,9.78]
[1642125157186,19.3916,147.54,147.43,34.6288]
[1642125157987,43.4061,147.54,147.43,9.78]
[1642125160289,42.8961,147.54,147.43,11.67999521]
[1642125160491,16.1706,147.54,147.44,28.35923127]
[1642125160690,16.1706,147.54,147.45,9.78]
[1642125160889,6.0,147.54,147.45,11.42999521]
[1642125161089,0.5608461,147.55,147.45,11.93999521]
[1642125161892,12.8819,147.54,147.45,10.29]
[1642125162090,19.3919,147.54,147.45,10.03]
[1642125162790,6.26,147.54,147.45,38.20368333]
[1642125162990,0.5608461,147.55,147.45,40.11367854]
[1642125163189,24.6661,147.57,147.45,46.11367854]
[1642125163390,2.711,147.59,147.45,46.11367854]
[1642125163593,8.711,147.59,147.45,51.83267854]
[1642125163790,2.711,147.59,147.45,51.83267854]
[1642125163992,8.711,147.59,147.46,67.59]
[1642125164193,2.711,147.59,147.48,27.85266401]
[1642125164393,2.711,147.6,147.49,9.78]
[1642125164591,399.65336563,147.62,147.49,11.42999521]
[1642125164792,399.65336563,147.62,147.49,17.93999521]
[1642125165028,3.66334765,147.63,147.5,69.23999521]
[1642125165229,3.66334765,147.63,147.51,9.78]
[1642125165427,3.66334765,147.63,147.52,10.1655]
[1642125165428,9.66334765,147.63,147.52,10.1655]
[1642125165630,9.66334765,147.63,147.52,19.9455]
[1642125165830,9.66334765,147.63,147.52,22.10549521]
[1642125166032,9.92334765,147.63,147.52,28.10549521]
[1642125166330,6.26,147.63,147.52,28.10549521]
[1642125166532,0.51,147.63,147.52,28.10549521]
[1642125166732,22.06259952,147.64,147.52,28.10549521]
[1642125166931,22.06259952,147.64,147.52,22.10549521]
[1642125167734,22.06259952,147.64,147.52,20.4555]
[1642125167934,21.80259952,147.64,147.52,20.4555]
[1642125168333,21.80259952,147.64,147.52,22.10549521]
[1642125168934,1.87311268,147.63,147.52,24.04609749]
[1642125169434,2.38311268,147.63,147.52,24.04609749]
[1642125169638,2.38311268,147.63,147.52,30.04609749]
[1642125169834,2.38311268,147.63,147.52,24.04609749]
[1642125170034,2.38311268,147.63,147.52,30.04609749]
[1642125170633,2.13311268,147.63,147.57,10.1621]
[1642125171033,2.13311268,147.63,147.57,10.4121]
[1642125171235,1.87311268,147.64,147.58,31.49857381]
[1642125171532,1.87311268,147.64,147.58,33.65856902]
[1642125171932,1.87311268,147.64,147.58,39.65856902]
[1642125172132,1.87311268,147.64,147.58,33.65856902]
[1642125172334,1.87311268,147.64,147.58,39.65856902]
[1642125172533,0.26,147.64,147.58,33.65856902]
[1642125172734,0.26,147.64,147.58,39.65856902]
[1642125172935,5.09311268,147.65,147.58,39.65856902]
[1642125173134,2.38311268,147.65,147.59,10.1606]
[1642125173534,2.38311268,147.65,147.59,10.4106]
[1642125175334,3.10306389,147.65,147.59,10.4106]
[1642125175539,1.87311268,147.64,147.59,10.4106]
[1642125175936,2.13311268,147.64,147.59,10.4106]
[1642125176440,2.38311268,147.64,147.57,9.78]
[1642125176639,5.09211268,147.64,147.57,20.1918]
[1642125177038,2.38311268,147.64,147.57,20.1918]
[1642125177638,2.13311268,147.64,147.57,20.1918]
[1642125177839,2.13311268,147.64,147.57,20.4518]
[1642125178438,2.13311268,147.64,147.57,26.4518]
[1642125178640,2.13311268,147.64,147.57,20.4518]
[1642125179041,0.26,147.64,147.57,20.1918]
[1642125179243,1.63563788,147.64,147.57,10.03]
[1642125180051,11.79943788,147.64,147.57,10.03]
[1642125180245,13.67255056,147.64,147.57,9.78]
[1642125180444,13.92255056,147.64,147.57,10.03]
[1642125180847,13.67255056,147.64,147.57,10.03]
[1642125181045,12.03751268,147.63,147.57,10.03]
[1642125181448,12.29751268,147.63,147.57,9.78]
[1642125181644,15.00751268,147.63,147.57,9.78]
[1642125181845,13.1344,147.63,147.57,9.78]
[1642125182047,19.3844,147.63,147.57,9.78]
[1642125182448,19.3844,147.63,147.55,1.94060228]
[1642125182646,19.3844,147.63,147.55,2.19060228]
[1642125182856,10.1662,147.61,147.55,0.51]
[1642125183047,16.4262,147.61,147.55,0.51]
[1642125183446,16.4262,147.61,147.55,0.25]
[1642125183875,16.4262,147.61,147.53,12.23060228]
[1642125184278,16.4262,147.61,147.53,13.88059749]
[1642125184578,10.4262,147.61,147.53,13.88059749]
[1642125185178,14.84056013,147.61,147.53,13.62059749]
[1642125185384,20.84056013,147.61,147.53,13.62059749]
[1642125185882,20.84056013,147.61,147.53,11.92591203]
[1642125186883,20.84056013,147.61,147.53,11.99591203]
[1642125187081,23.80056013,147.61,147.53,11.99591203]
[1642125187481,19.67367281,147.61,147.53,10.05530975]
[1642125187681,6.79747281,147.61,147.53,20.22040975]
[1642125188280,6.79747281,147.61,147.53,10.05530975]
[1642125189181,16.96397281,147.61,147.53,10.05530975]
[1642125190883,16.96397281,147.61,147.53,8.15531454]
[1642125191086,10.1679,147.59,147.53,8.15531454]
[1642125191283,2.71,147.58,147.53,0.07]
[1642125191486,0.25,147.58,147.53,0.07]
[1642125191683,0.26,147.58,147.53,0.07]
[1642125191889,1.63563788,147.58,147.53,0.07]
[1642125193593,1.88563788,147.58,147.53,0.07]
[1642125195189,1.63563788,147.58,147.53,0.07]
[1642125196490,1.88563788,147.58,147.53,0.07]
[1642125196890,2.71,147.57,147.53,0.07]
[1642125197090,0.26,147.57,147.53,0.07]
[1642125197492,3.50875056,147.58,147.53,0.07]
[1642125198092,2.13311268,147.58,147.53,0.07]
[1642125198493,2.13311268,147.58,147.5,28.20780228]
[1642125198995,0.26,147.58,147.51,1.94060228]
[1642125199393,16.4273,147.59,147.51,8.19060228]
[1642125199595,19.1373,147.59,147.51,7.94060228]
[1642125199795,19.1373,147.59,147.51,1.94060228]
[1642125199995,19.3873,147.59,147.51,1.94060228]
[1642125200794,19.3873,147.59,147.49,1.94060228]
[1642125200795,1.87311268,147.58,147.49,1.94060228]
[1642125200996,10.1704,147.55,147.49,1.94060228]
[1642125201494,16.6804,147.55,147.49,1.94060228]
[1642125201695,10.6804,147.55,147.49,1.94060228]
[1642125201895,16.4304,147.55,147.49,1.94060228]
[1642125202095,14.75331268,147.57,147.48,1.94060228]
[1642125202297,1.87311268,147.57,147.49,1.64999521]
[1642125202596,1.87311268,147.57,147.49,10.39599521]
[1642125202797,1.87311268,147.57,147.5,9.78]
[1642125203097,1.87311268,147.57,147.5,28.39730228]
[1642125203297,24.5884,147.63,147.5,28.39730228]
[1642125203298,1.87311268,147.59,147.51,32.71591073]
[1642125203500,1.87311268,147.59,147.52,9.78]
[1642125203698,1.87311268,147.59,147.52,16.72199521]
[1642125203899,1.87311268,147.59,147.52,21.582]
[1642125204097,1.87311268,147.59,147.53,1.64999521]
[1642125204301,0.26,147.59,147.55,10.1628]
[1642125204601,2.13311268,147.62,147.55,10.4128]
[1642125204899,2.13311268,147.62,147.55,12.06279521]
[1642125205105,1.87311268,147.62,147.55,17.28679521]
[1642125205300,1.87311268,147.62,147.58,10.1614]
[1642125205498,1.87311268,147.62,147.58,17.1714]
[1642125205799,1.87311268,147.64,147.59,1.64999521]
[1642125205998,1.87311268,147.64,147.6,31.31543141]
[1642125206400,1.87311268,147.64,147.6,41.72563141]
[1642125206600,1.87311268,147.64,147.6,53.41562662]
[1642125207198,1.87311268,147.66,147.6,53.41562662]
[1642125208101,1.87311268,147.66,147.6,61.60162662]
[1642125208700,1.87311268,147.68,147.6,61.60162662]
[1642125209501,1.87311268,147.68,147.6,67.60162662]
[1642125210101,1.87311268,147.68,147.61,0.07]
[1642125210299,1.87311268,147.68,147.62,9.78]
[1642125210504,1.87311268,147.68,147.65,10.1535]
[1642125210702,1.87311268,147.68,147.66,29.63438373]
[1642125210902,1.87311268,147.7,147.66,39.41438373]
[1642125211209,1.87311268,147.7,147.66,45.92438373]
[1642125211402,1.87311268,147.7,147.67,10.1535]
[1642125211802,4.58111268,147.72,147.67,10.4035]
[1642125212003,2.13311268,147.72,147.67,10.4035]
[1642125212201,2.13311268,147.72,147.67,20.1835]
[1642125212400,1.87311268,147.72,147.67,20.1835]
[1642125212609,2.13311268,147.72,147.67,45.72267112]
[1642125212802,1.87311268,147.71,147.67,45.72267112]
[1642125213201,1.87311268,147.71,147.67,45.98267112]
[1642125213601,1.87311268,147.71,147.67,53.63266633]
[1642125213901,1.94062078,147.73,147.68,67.59]
[1642125214101,1.94062078,147.73,147.7,10.151]
[1642125214305,1.94062078,147.73,147.71,9.78]
[1642125214503,1.94062078,147.73,147.71,11.93999521]
[1642125214803,1.94062078,147.76,147.72,1.64999521]
[1642125215004,1.94062078,147.76,147.73,9.78]
[1642125215403,3.66334765,147.8,147.73,17.93999521]
[1642125215603,3.66334765,147.8,147.74,94.77977466]
[1642125215804,3.66334765,147.8,147.75,9.78]
[1642125216006,3.66334765,147.8,147.76,67.59]
[1642125216205,3.66334765,147.82,147.76,77.37]
[1642125216407,3.66334765,147.82,147.76,83.88]
[1642125216910,3.66334765,147.82,147.77,10.1468]
[1642125217106,6.36934765,147.84,147.77,10.1468]
[1642125217306,9.66334765,147.84,147.77,16.3968]
[1642125217733,9.92334765,147.84,147.77,16.3968]
[1642125218133,7.54280453,147.83,147.77,16.3968]
[1642125218335,10.24880453,147.83,147.77,16.3968]
[1642125218533,16.50880453,147.83,147.77,16.3968]
[1642125218734,13.80280453,147.83,147.77,16.3968]
[1642125218938,9.92334765,147.83,147.77,16.3968]
[1642125220335,6.26,147.83,147.77,16.3968]
[1642125220535,2.966,147.83,147.77,6.25]
[1642125220737,8.966,147.83,147.77,6.25]
[1642125221337,12.62934765,147.83,147.77,6.0]
[1642125221537,9.92334765,147.83,147.77,0.25]
[1642125221740,2.706,147.82,147.77,0.25]
[1642125221938,0.26,147.82,147.77,0.25]
[1642125222540,9.92334765,147.83,147.76,16.03]
[1642125222941,10.17334765,147.83,147.76,15.78]
[1642125223139,6.51,147.83,147.76,15.78]
[1642125223339,2.706,147.82,147.76,15.78]
[1642125223541,2.966,147.82,147.76,15.78]
[1642125223740,2.966,147.82,147.76,9.78]
[1642125224241,2.966,147.82,147.76,20.1793]
[1642125225743,0.26,147.82,147.76,20.1793]
[1642125225950,12.62934765,147.83,147.76,20.1793]
[1642125226142,3.92334765,147.83,147.76,20.1793]
[1642125226342,9.92334765,147.83,147.76,20.1793]
[1642125227146,10.1516,147.82,147.76,10.03]
[1642125227344,12.8576,147.82,147.76,0.25]
[1642125227544,13.3676,147.82,147.74,27.43977466]
[1642125227942,13.1176,147.82,147.74,27.43977466]
[1642125228142,0.26,147.82,147.74,27.43977466]
[1642125228543,4.17334765,147.83,147.74,27.43977466]
[1642125228743,10.17334765,147.83,147.74,27.43977466]
[1642125229144,10.17334765,147.83,147.74,37.59007466]
[1642125229344,12.87934765,147.83,147.74,37.59007466]
[1642125229543,12.87934765,147.83,147.74,37.85007466]
[1642125230347,10.17334765,147.83,147.74,37.85007466]
[1642125230946,9.91334765,147.83,147.74,37.85007466]
[1642125231146,9.91334765,147.83,147.74,45.50006987]
[1642125231547,9.91334765,147.83,147.75,9.78]
[1642125231752,9.91334765,147.83,147.78,10.1475]
[1642125231753,9.66334765,147.83,147.78,10.1475]
[1642125231947,9.66334765,147.83,147.78,26.4375]
[1642125232448,3.66334765,147.84,147.78,28.08749521]
[1642125232947,9.66334765,147.84,147.78,28.08749521]
[1642125233148,9.66334765,147.86,147.78,28.08749521]
[1642125233348,6.0,147.84,147.78,26.4375]
[1642125233548,9.66334765,147.86,147.78,28.08749521]
[1642125233747,9.66334765,147.86,147.78,27.82749521]
[1642125233948,9.91334765,147.86,147.78,26.1775]
[1642125234451,10.17334765,147.86,147.78,20.1775]
[1642125235751,7.54224544,147.85,147.78,10.03]
[1642125235951,13.54224544,147.85,147.78,10.03]
[1642125236354,13.79224544,147.85,147.75,9.78]
[1642125236553,2.706,147.84,147.75,15.78]
[1642125236753,2.706,147.84,147.75,9.78]
[1642125236754,8.706,147.84,147.75,9.78]
[1642125236953,10.1525,147.81,147.75,9.78]
[1642125237354,10.4025,147.81,147.75,9.78]
[1642125237559,0.25,147.81,147.75,9.78]
[1642125238056,2.956,147.81,147.75,9.78]
[1642125238456,2.966,147.81,147.75,10.03]
[1642125239156,0.26,147.81,147.75,10.03]
[1642125239555,14.32494765,147.82,147.75,10.03]
[1642125243857,14.06494765,147.82,147.75,10.03]
[1642125244057,14.06494765,147.82,147.75,10.29]
[1642125244258,3.91334765,147.82,147.76,1.64999521]
[1642125244458,3.66334765,147.82,147.76,8.15999521]
[1642125244759,3.66334765,147.82,147.77,11.42999521]
[1642125244958,3.66334765,147.82,147.77,17.93999521]
[1642125245159,3.66334765,147.82,147.78,1.64999521]
[1642125245358,3.66334765,147.82,147.79,9.78]
[1642125245560,9.66334765,147.84,147.8,25.60090706]
[1642125245763,9.66334765,147.84,147.8,35.38090706]
[1642125246059,9.66334765,147.84,147.82,10.145]
[1642125246259,9.66334765,147.84,147.8,35.89090706]
[1642125247063,6.0,147.84,147.8,46.03720706]
[1642125248559,12.36934765,147.88,147.8,45.77720706]
[1642125248962,12.87934765,147.88,147.8,45.77720706]
[1642125249158,12.61934765,147.88,147.8,45.77720706]
[1642125249961,12.61934765,147.88,147.8,46.03720706]
[1642125250561,12.87934765,147.88,147.8,46.03720706]
[1642125251163,23.02674765,147.88,147.8,35.89090706]
[1642125251364,19.3634,147.88,147.8,10.29]
[1642125251763,9.216,147.88,147.8,10.29]
[1642125252163,12.87934765,147.88,147.8,10.29]
[1642125252571,12.87934765,147.88,147.8,20.4363]
[1642125252867,12.62934765,147.88,147.8,20.4363]
[1642125253765,9.92334765,147.88,147.8,20.4363]
[1642125253966,6.26,147.88,147.8,20.4363]
[1642125254165,0.26,147.88,147.8,20.4363]
[1642125254367,53.68194765,147.89,147.8,20.4363]
[1642125254665,53.17194765,147.89,147.8,89.67629521]
[1642125254865,3.66334765,147.89,147.8,28.08629521]
[1642125255465,3.66334765,147.91,147.8,28.08629521]
[1642125255665,3.66334765,147.91,147.81,67.59]
[1642125255868,3.66334765,147.91,147.84,10.1434]
[1642125256068,3.66334765,147.91,147.85,26.51567254]
[1642125256266,9.66334765,147.91,147.85,26.51567254]
[1642125256467,13.79181426,147.91,147.85,26.51567254]
[1642125257472,9.92334765,147.91,147.85,26.51567254]
[1642125257672,6.26,147.91,147.85,26.51567254]
[1642125257974,0.26,147.91,147.85,26.51567254]
[1642125258173,33.66654765,147.92,147.85,26.51567254]
[1642125258576,3.66334765,147.91,147.85,26.51567254]
[1642125258998,9.92334765,147.91,147.85,26.51567254]
[1642125259199,9.92334765,147.91,147.85,36.65877254]
[1642125259402,13.8011678,147.91,147.85,36.65877254]
[1642125260000,13.8011678,147.91,147.85,10.1431]
[1642125260504,16.7551678,147.91,147.85,10.1431]
[1642125261106,3.87782015,147.9,147.85,10.1431]
[1642125261504,10.38782015,147.9,147.85,10.1431]
[1642125261902,14.0511678,147.9,147.85,10.1431]
[1642125262802,10.17334765,147.9,147.85,10.1431]
[1642125264601,10.17334765,147.9,147.85,10.3931]
[1642125264602,9.92334765,147.9,147.85,10.3931]
[1642125265002,6.26,147.9,147.85,10.3931]
[1642125265203,6.0,147.9,147.85,10.3931]
[1642125265402,9.66334765,147.91,147.85,10.3931]
[1642125265603,3.66334765,147.91,147.85,10.3931]
[1642125265802,9.66334765,147.91,147.85,10.3931]
[1642125266407,9.91334765,147.91,147.83,10.1441]
[1642125266606,12.87834765,147.91,147.83,10.1441]
[1642125267904,12.87834765,147.91,147.83,10.3941]
[1642125268105,3.87805914,147.9,147.83,10.3941]
[1642125268305,7.54140679,147.9,147.83,10.3941]
[1642125268508,14.05140679,147.9,147.83,10.1441]
[1642125269010,14.05140679,147.9,147.83,10.3941]
[1642125269608,10.17334765,147.9,147.83,10.3941]
[1642125269807,6.51,147.9,147.83,10.3941]
[1642125270008,0.51,147.9,147.83,9.8941]
[1642125270209,6.51,147.9,147.83,9.8941]
[1642125270715,0.26,147.9,147.83,9.8941]
[1642125270909,2.705,147.91,147.83,10.1541]
[1642125271108,23.7432,147.92,147.83,19.9341]
[1642125271512,2.705,147.94,147.83,27.58409521]
[1642125271810,27.15514765,147.95,147.83,27.58409521]
[1642125272008,27.15514765,147.95,147.84,0.07]